bitfinex-derivatives/quotes_SOLF0:USTF0_20250425
["timestamp","ask_amount","ask_price","bid_price","bid_amount"]
[1745601920839,24.42,152.86,152.78,13.77363984]
[1745601921135,24.42,152.86,152.8,13.77363984]
[1745601921336,24.42,152.86,152.81,1.9889]
[1745601921536,6.5372,152.88,152.81,1.9889]
[1745601921936,6.5372,152.88,152.82,13.77363984]
[1745601922438,6.5375,152.87,152.82,13.77363984]
[1745601922739,6.5375,152.87,152.84,6.5384]
[1745601924330,38.19363984,152.89,152.81,1.9889]
[1745601924535,24.42,152.89,152.81,1.9889]
[1745601924843,6.5361,152.9,152.87,6.5371]
[1745601925039,24.42,152.92,152.84,13.77363984]
[1745601925437,6.5359,152.91,152.84,17.73583984]
[1745601926341,24.42,152.92,152.86,13.77363984]
[1745601926539,40.21493984,152.95,152.87,1.8878]
[1745601926741,6.5349,152.93,152.89,6.5361]
[1745601926934,40.21493984,152.95,152.87,1.8878]
[1745601927338,6.5355,152.92,152.88,6.5367]
[1745601927841,13.77363984,152.93,152.87,1.8878]
[1745601928342,6.536,152.91,152.87,8.4249]
[1745601929047,6.5362,152.9,152.87,8.4249]
[1745601929240,13.77363984,152.93,152.87,8.4249]
[1745601930245,13.77363984,152.93,152.87,6.5371]
[1745601931642,6.5359,152.91,152.88,6.5369]
[1745601932343,6.5359,152.91,152.87,6.5372]
[1745601932538,6.5359,152.91,152.84,17.73583984]
[1745601933344,13.77363984,152.95,152.86,13.77363984]
[1745601933545,24.4,152.96,152.91,6.5356]
[1745601933741,24.4,152.96,152.88,13.77363984]
[1745601933937,6.5349,152.93,152.88,13.77363984]
[1745601934945,6.5349,152.93,152.9,6.5359]
[1745601935146,24.4,152.96,152.88,13.77363984]
[1745601935445,24.4,152.96,152.89,6.5363]
[1745601935844,6.5353,152.92,152.89,6.5363]
[1745601936047,24.4,152.96,152.89,6.5363]
[1745601936247,24.4,152.96,152.9,6.536]
[1745601937048,30.9337,152.96,152.93,6.5347]
[1745601937246,24.4,152.96,152.9,13.77363984]
[1745601937950,30.9338,152.96,152.93,6.5348]
[1745601938850,6.534,152.95,152.92,6.5351]
[1745601939444,6.5345,152.94,152.92,6.5351]
[1745601939650,24.4,152.96,152.88,13.77363984]
[1745601940250,6.5351,152.93,152.9,6.5359]
[1745601941649,6.5346,152.94,152.91,6.5356]
[1745601941855,24.4,152.96,152.88,13.77363984]
[1745601942150,6.535,152.93,152.9,6.536]
[1745601943552,6.5346,152.94,152.91,6.5356]
[1745601943751,24.4,152.96,152.88,13.77363984]
[1745601944250,6.535,152.93,152.9,6.5358]
[1745601944853,6.535,152.93,152.88,13.77363984]
[1745601945249,6.5354,152.92,152.87,26.4322]
[1745601945452,6.5354,152.92,152.89,6.5362]
[1745601945751,24.4,152.96,152.88,13.77363984]
[1745601946055,6.5346,152.94,152.88,13.77363984]
[1745601947352,6.5342,152.95,152.92,6.535]
[1745601947651,24.4,152.96,152.92,6.535]
[1745601947852,6.5346,152.94,152.92,6.535]
[1745601949858,6.5341,152.95,152.92,6.535]
[1745601950256,24.4,152.96,152.88,13.77363984]
[1745601950758,6.5342,152.95,152.88,13.77363984]
[1745601950957,6.5342,152.95,152.92,6.5352]
[1745601951851,30.9337,152.96,152.93,6.5346]
[1745601952055,24.4,152.96,152.9,13.77363984]
[1745601952355,6.5331,152.97,152.94,6.5344]
[1745601953261,24.38,152.99,152.92,13.77363984]
[1745601953455,24.38,152.99,152.93,2.0385]
[1745601953855,6.5327,152.98,152.93,2.0385]
[1745601954464,6.5334,152.97,152.93,2.0385]
[1745601954653,38.15363984,152.99,152.93,2.0385]
[1745601954960,38.15363984,152.99,152.93,6.5344]
[1745601955156,38.15363984,152.99,152.91,24.38]
[1745601955361,38.15363984,152.99,152.92,6.535]
[1745601955563,6.5342,152.95,152.92,6.535]
[1745601955762,13.77363984,152.97,152.91,24.38]
[1745601955954,13.77363984,152.97,152.91,6.5356]
[1745601956155,6.5349,152.93,152.91,6.5356]
[1745601956562,6.5349,152.93,152.9,6.536]
[1745601957163,38.15363984,152.95,152.89,6.5364]
[1745601957662,6.5355,152.92,152.89,6.5364]
[1745601957965,6.5355,152.92,152.9,6.5361]
[1745601958167,38.15363984,152.95,152.9,6.5361]
[1745601958366,6.535,152.93,152.9,6.5361]
[1745601958867,24.38,152.95,152.88,19.60543984]
[1745601959068,24.38,152.98,152.9,13.77363984]
[1745601959567,13.77363984,152.97,152.88,5.8318]
[1745601960269,6.5347,152.94,152.9,6.5358]
[1745601960469,13.77363984,152.95,152.9,6.5358]
[1745601960664,6.5351,152.93,152.88,5.8318]
[1745601960876,13.77363984,152.95,152.88,5.8318]
[1745601961270,15.70723984,152.97,152.92,6.5353]
[1745601961567,15.70723984,152.97,152.88,19.60543984]
[1745601961768,6.5333,152.97,152.94,6.5342]
[1745601962465,30.9129,152.98,152.95,6.5336]
[1745601962673,24.38,153.01,152.94,13.77363984]
[1745601962873,15.81043984,153.03,152.94,13.77363984]
[1745601963074,6.5313,153.02,152.96,13.77363984]
[1745601963470,24.38,153.04,152.96,13.77363984]
[1745601964271,6.5315,153.01,152.97,6.5329]
[1745601965075,6.5312,153.02,152.98,6.5327]
[1745601966274,6.5312,153.02,152.97,6.5328]
[1745601966475,6.5312,153.02,152.96,13.77363984]
[1745601966674,6.5312,153.02,152.96,15.66833984]
[1745601966974,6.5307,153.03,152.96,15.66833984]
[1745601967474,6.5311,153.02,152.98,6.5323]
[1745601967877,24.38,153.04,152.98,6.5323]
[1745601968174,24.38,153.04,152.99,6.5322]
[1745601968375,24.38,153.04,152.96,19.62513984]
[1745601968574,6.5318,153.01,152.96,19.62513984]
[1745601968977,6.5318,153.01,152.98,6.5324]
[1745601969777,38.15363984,153.05,152.96,19.62513984]
[1745601970678,6.5318,153.01,152.98,6.5327]
[1745601972182,6.5311,153.02,152.96,19.62513984]
[1745601972583,24.38,153.05,152.98,13.77363984]
[1745601972775,6.5308,153.03,152.98,13.77363984]
[1745601973083,24.38,153.05,152.98,13.77363984]
[1745601973681,6.5306,153.03,153.0,6.5316]
[1745601973884,510.66443984,153.08,153.0,13.77363984]
[1745601974183,510.66443984,153.08,152.99,24.38]
[1745601974583,6.5304,153.04,153.01,6.5312]
[1745601975080,6.5307,153.03,153.01,6.5312]
[1745601975288,510.66443984,153.08,153.0,6.5316]
[1745601975482,13.77363984,153.06,152.96,44.00513984]
[1745601975682,6.5313,153.02,152.99,6.532]
[1745601975885,13.77363984,153.04,152.96,30.2315]
[1745601976187,6.5314,153.01,152.98,6.5325]
[1745601980796,13.77363984,153.02,152.93,24.38]
[1745601981094,13.77363984,153.0,152.92,38.15363984]
[1745601981294,13.77363984,153.0,152.94,6.5341]
[1745601981295,6.5332,152.97,152.94,6.5341]
[1745601981599,38.15363984,153.0,152.92,24.38]
[1745601981898,6.5331,152.97,152.94,6.5342]
[1745601982097,38.15363984,153.0,152.89,24.38]
[1745601982295,38.15363984,153.0,152.9,4.0208]
[1745601982694,6.5337,152.96,152.93,6.5346]
[1745601983191,6.5337,152.96,152.94,6.5343]
[1745601983394,6.5333,152.97,152.94,6.5343]
[1745601983892,38.15363984,153.0,152.94,6.5343]
[1745601984098,6.5329,152.98,152.95,6.534]
[1745601985598,6.5332,152.97,152.94,6.5342]
[1745601986194,38.15363984,153.0,152.9,4.0208]
[1745601986595,6.5332,152.97,152.94,6.534]
[1745601986799,38.15363984,153.0,152.9,4.0208]
[1745601987305,6.5329,152.98,152.95,6.5337]
[1745601987594,38.15363984,153.0,152.91,13.77363984]
[1745601987800,6.5327,152.98,152.95,6.5337]
[1745601989602,6.5327,152.98,152.96,6.5335]
[1745601989801,24.38,153.0,152.93,38.13363984]
[1745601990197,6.5304,153.04,152.97,13.77363984]
[1745601990502,494.98,153.08,152.99,13.77363984]
[1745601990903,6.5292,153.07,152.99,13.77363984]
[1745601991201,24.36,153.08,153.01,13.77363984]
[1745601991399,24.36,153.08,153.01,24.36]
[1745601991595,24.36,153.08,153.01,38.13363984]
[1745601992005,30.8886,153.08,153.01,38.13363984]
[1745601992601,6.5289,153.07,153.01,38.13363984]
[1745601992909,24.36,153.08,153.01,38.13363984]
[1745601993107,30.8886,153.08,153.04,6.5298]
[1745601994706,6.529,153.07,153.04,6.5298]
[1745601994908,24.36,153.08,153.03,13.77363984]
[1745601995409,6.5296,153.06,153.03,13.77363984]
[1745601995605,6.5296,153.06,153.03,20.30413984]
[1745601996210,6.5297,153.05,153.02,6.5307]
[1745601996410,6.5297,153.05,153.01,38.13363984]
[1745601996607,38.13363984,153.08,153.01,24.36]
[1745601996807,6.5304,153.04,153.01,30.8912]
[1745601997012,6.5304,153.04,153.01,6.5312]
[1745601997312,6.5299,153.05,153.02,6.531]
[1745601997910,6.5299,153.05,153.01,6.5312]
[1745601998111,6.5302,153.04,153.01,6.5312]
[1745601998712,6.5302,153.04,153.0,6.5317]
[1745601999015,38.13363984,153.08,153.0,6.5317]
[1745601999312,13.77363984,153.06,152.99,6.5321]
[1745601999610,6.5308,153.03,152.99,6.5321]
[1745601999800,13.77363984,153.06,152.98,30.1799]
[1745602000202,6.5303,153.04,152.98,30.1799]
[1745602000911,6.5303,153.04,153.01,6.5312]
[1745602001311,6.5299,153.05,153.01,6.5312]
[1745602001613,6.5299,153.05,153.02,6.5309]
[1745602002817,6.5299,153.05,153.01,6.5312]
[1745602003017,6.5304,153.04,153.01,6.5312]
[1745602003218,13.77363984,153.06,152.98,30.1799]
[1745602003414,13.77363984,153.06,152.98,28.2007]
[1745602003714,13.77363984,153.04,152.95,38.13363984]
[1745602003923,24.36,153.03,152.97,6.533]
[1745602004120,6.5318,153.0,152.97,6.533]
[1745602005617,6.5315,153.01,152.98,6.5327]
[1745602006218,6.5312,153.02,152.99,6.5322]
[1745602006719,6.5312,153.02,152.95,38.13363984]
[1745602007218,6.5312,153.02,152.98,6.5324]
[1745602007718,6.5315,153.01,152.98,6.5324]
[1745602007919,24.36,153.03,152.98,6.5324]
[1745602008320,6.5314,153.02,152.98,6.5324]
[1745602008719,24.36,153.03,152.98,6.5324]
[1745602009020,6.5312,153.02,152.98,6.5324]
[1745602009822,6.5315,153.01,152.98,6.5324]
[1745602010317,6.5318,153.01,152.97,6.5329]
[1745602010522,13.77363984,153.02,152.95,24.36]
[1745602010915,13.77363984,153.02,152.96,6.5333]
[1745602011118,13.77363984,153.02,152.95,24.36]
[1745602011622,6.5319,153.0,152.96,6.5332]
[1745602011818,13.77363984,153.02,152.96,6.5332]
[1745602012022,13.77363984,153.02,152.93,6.0674]
[1745602012321,6.5326,152.99,152.95,6.5336]
[1745602013223,6.5326,152.99,152.96,6.5335]
[1745602013427,6.5319,153.0,152.93,6.0674]
[1745602014225,6.5323,152.99,152.93,6.0674]
[1745602014424,6.5323,152.99,152.96,6.5333]
[1745602015724,6.5323,152.99,152.93,19.84103984]
[1745602016625,6.5323,152.99,152.96,6.5334]
[1745602016923,13.77363984,153.02,152.93,6.0674]
[1745602017225,13.77363984,153.0,152.94,6.5342]
[1745602017523,15.34904503,152.98,152.93,10.87944503]
[1745602017922,15.34904503,152.98,152.95,6.534]
[1745602019127,8.81604503,152.98,152.96,6.5333]
[1745602019323,24.34,152.99,152.96,6.5333]
[1745602019926,30.8725,152.99,152.95,6.5338]
[1745602021026,24.34,153.02,152.94,13.77245757]
[1745602021325,24.34,153.02,152.93,2.0634]
[1745602021527,6.5323,152.99,152.96,6.5333]
[1745602021824,13.77245757,153.01,152.93,2.0634]
[1745602022027,6.5329,152.98,152.95,6.5338]
[1745602022327,24.34,152.98,152.93,2.0634]
[1745602022527,6.5339,152.96,152.93,6.5345]
[1745602027033,24.34,152.98,152.89,28.3383]
[1745602027232,13.77245757,152.97,152.89,28.3383]
[1745602027734,24.34,152.98,152.92,13.77245757]
[1745602028128,24.34,152.98,152.9,13.77245757]
[1745602028734,6.5336,152.96,152.93,6.5346]
[1745602029429,6.5335,152.97,152.9,13.77245757]
[1745602029729,24.34,152.98,152.9,13.77245757]
[1745602029932,6.5343,152.95,152.9,13.77245757]
[1745602030235,6.5343,152.95,152.92,6.535]
[1745602030432,6.5345,152.94,152.9,13.77245757]
[1745602030732,24.34,152.98,152.92,6.5352]
[1745602030934,6.5339,152.96,152.9,13.77245757]
[1745602031236,24.34,152.98,152.9,13.77245757]
[1745602031728,24.34,152.98,152.92,6.535]
[1745602031934,24.34,152.98,152.9,13.77245757]
[1745602032133,6.5336,152.96,152.9,13.77245757]
[1745602032433,6.5336,152.96,152.92,6.535]
[1745602033334,6.5341,152.95,152.92,6.535]
[1745602034034,6.5341,152.95,152.91,6.5355]
[1745602034236,6.5341,152.95,152.9,13.77245757]
[1745602034534,24.34,152.98,152.9,13.77245757]
[1745602034733,24.34,152.98,152.93,6.5346]
[1745602036239,24.34,152.98,152.92,13.77245757]
[1745602036431,38.13245757,153.01,152.92,13.77245757]
[1745602036736,6.5334,152.97,152.93,6.5346]
[1745602036932,38.13245757,153.01,152.91,13.77245757]
[1745602037431,6.5336,152.96,152.92,6.535]
[1745602037736,38.13245757,153.01,152.91,13.77245757]
[1745602038035,6.5335,152.97,152.93,6.5348]
[1745602038837,6.5336,152.96,152.93,6.5348]
[1745602039340,6.5333,152.97,152.93,6.5348]
[1745602039736,38.13245757,153.01,152.93,6.5348]
[1745602040440,6.5334,152.97,152.93,6.5348]
[1745602041139,6.5336,152.96,152.92,6.535]
[1745602041339,8.81647516,152.98,152.92,15.35147516]
[1745602041639,6.5339,152.96,152.92,15.35147516]
[1745602043241,6.534,152.95,152.92,15.35147516]
[1745602044139,6.5345,152.94,152.92,8.81647516]
[1745602044440,8.81647516,152.96,152.91,8.81647516]
[1745602044643,6.5343,152.95,152.91,15.35187516]
[1745602045442,6.5344,152.94,152.91,15.35187516]
[1745602046038,8.81647516,152.96,152.89,28.3383]
[1745602046241,8.81647516,152.94,152.89,28.3383]
[1745602046645,8.81647516,152.94,152.89,3.9983]
[1745602047445,8.81647516,152.94,152.89,10.5347]
[1745602047446,6.535,152.93,152.89,10.5347]
[1745602047741,6.535,152.93,152.89,3.9983]
[1745602047950,8.81647516,152.94,152.9,8.81647516]
[1745602048148,33.15647516,152.96,152.91,6.5356]
[1745602048446,33.15647516,152.96,152.9,8.81647516]
[1745602048944,8.81647516,152.94,152.9,8.81647516]
[1745602049346,6.5349,152.93,152.9,15.35247516]
[1745602050053,15.35107516,152.94,152.9,8.81647516]
[1745602050251,8.81647516,152.94,152.9,8.81647516]
[1745602050652,24.34,152.96,152.92,8.81647516]
[1745602050853,8.81647516,152.96,152.92,8.81647516]
[1745602051054,8.81647516,152.96,152.9,33.15647516]
[1745602051452,6.5346,152.94,152.91,6.5355]
[1745602051860,6.5346,152.94,152.9,33.15647516]
[1745602052256,6.535,152.93,152.9,39.69237516]
[1745602053757,6.5356,152.92,152.9,33.15647516]
[1745602053953,8.81647516,152.96,152.9,33.15647516]
[1745602054158,8.81647516,152.96,152.9,8.81647516]
[1745602054360,6.535,152.93,152.9,15.35247516]
[1745602055159,6.5353,152.92,152.9,8.81647516]
[1745602055659,8.81647516,152.94,152.9,8.81647516]
[1745602055857,8.81647516,152.92,152.88,10.84207516]
[1745602057061,15.35197516,152.92,152.88,17.37867516]
[1745602057861,15.35197516,152.92,152.89,6.5365]
[1745602058062,15.35197516,152.92,152.88,10.84207516]
[1745602058358,8.81647516,152.92,152.88,10.84207516]
[1745602058563,24.34,152.94,152.9,8.81647516]
[1745602058764,8.81647516,152.96,152.9,8.81647516]
[1745602058962,6.5343,152.95,152.91,6.5355]
[1745602059265,8.81647516,152.96,152.91,6.5355]
[1745602059764,6.5342,152.95,152.91,6.5355]
[1745602060064,8.81647516,152.96,152.91,6.5355]
[1745602060254,6.5346,152.94,152.91,6.5355]
[1745602061661,6.5341,152.95,152.92,6.5353]
[1745602062366,6.5341,152.95,152.91,6.5355]
[1745602062666,6.5344,152.94,152.91,6.5355]
[1745602066667,8.81647516,152.94,152.9,6.536]
[1745602066873,8.81647516,152.94,152.89,4.0173]
[1745602066874,8.81647516,152.94,152.89,12.83377516]
[1745602067172,15.35197516,152.92,152.88,8.5623]
[1745602068673,15.35197516,152.92,152.89,6.5364]
[1745602069674,15.35197516,152.92,152.88,8.5624]
[1745602070376,15.35197516,152.92,152.89,6.5365]
[1745602071375,8.81647516,152.92,152.89,6.5365]
[1745602072378,15.35177516,152.92,152.89,6.5365]
[1745602074579,15.35177516,152.92,152.88,8.5624]
[1745602074978,6.5357,152.91,152.88,8.5624]
[1745602075377,8.81647516,152.92,152.89,6.5365]
[1745602075676,15.35197516,152.92,152.89,6.5365]
[1745602076579,6.5357,152.91,152.88,8.5624]
[1745602077084,15.35197516,152.92,152.89,6.5362]
[1745602077377,8.81647516,152.92,152.88,2.0256]
[1745602079280,15.35177516,152.92,152.89,6.5363]
[1745602083582,6.5359,152.91,152.88,8.5623]
[1745602083982,6.5359,152.91,152.88,2.0256]
[1745602084183,8.81647516,152.92,152.88,2.0256]
[1745602084383,8.81647516,152.92,152.88,10.84207516]
[1745602084584,8.81647516,152.92,152.88,2.0256]
[1745602084776,8.81647516,152.92,152.88,10.84207516]
[1745602085185,15.35217516,152.92,152.89,6.5365]
[1745602085484,8.81647516,152.92,152.88,10.84207516]
[1745602086288,15.35197516,152.92,152.89,6.5364]
[1745602086491,8.81647516,152.92,152.89,6.5364]
[1745602086787,6.5357,152.91,152.88,17.37877516]
[1745602087186,8.81647516,152.92,152.88,17.37877516]
[1745602088189,6.5357,152.91,152.88,17.37877516]
[1745602088390,1.13844543,152.98,152.9,8.81647516]
[1745602088589,6.5334,152.97,152.92,8.81647516]
[1745602089387,6.5334,152.97,152.92,15.35137516]
[1745602089590,8.81647516,152.96,152.91,24.32]
[1745602089790,8.81647516,152.94,152.91,24.32]
[1745602089984,8.81647516,152.94,152.9,6.5359]
[1745602090193,15.35117516,152.94,152.9,6.5359]
[1745602090391,8.81647516,152.92,152.88,35.16207516]
[1745602090682,8.81647516,152.92,152.89,6.5364]
[1745602090888,8.81647516,152.92,152.88,10.84207516]
[1745602091187,8.81647516,152.92,152.89,6.5365]
[1745602091984,15.35187516,152.92,152.89,6.5365]
[1745602092490,15.35187516,152.92,152.88,8.5624]
[1745602092690,6.5357,152.91,152.88,6.5368]
[1745602093691,8.81647516,152.92,152.89,6.5365]
[1745602094190,15.35197516,152.92,152.89,6.5365]
[1745602094393,15.35197516,152.92,152.88,6.5368]
[1745602094892,6.5358,152.91,152.88,6.5368]
[1745602095391,15.35197516,152.92,152.88,6.5368]
[1745602095689,8.81647516,152.92,152.88,6.5368]
[1745602096395,6.536,152.91,152.87,6.5371]
[1745602096594,8.81647516,152.9,152.87,6.5371]
[1745602097594,15.35277516,152.9,152.87,6.5371]
[1745602097893,8.81647516,152.9,152.87,6.5371]
[1745602098295,15.35257516,152.9,152.87,6.5371]
[1745602098797,8.81647516,152.9,152.88,6.537]
[1745602099297,8.81647516,152.9,152.86,8.81647516]
[1745602099499,15.35257516,152.9,152.87,6.5371]
[1745602104100,15.35257516,152.9,152.86,8.81647516]
[1745602104502,15.35257516,152.9,152.87,6.5372]
[1745602104797,6.537,152.88,152.85,28.2654]
[1745602105002,8.81647516,152.9,152.86,6.5378]
[1745602105803,6.5368,152.89,152.86,6.5378]
[1745602106102,8.81647516,152.9,152.79,13.0809]
[1745602106103,24.32,152.88,152.87,4.56789531]
[1745602106303,6.5383,152.86,152.79,8.81647516]
[1745602106499,8.81647516,152.84,152.8,6.5402]
[1745602106705,8.81647516,152.83,152.8,6.5402]
[1745602106905,8.81647516,152.83,152.78,33.13647516]
[1745602107100,8.81647516,152.83,152.8,6.5403]
[1745602107505,15.35567516,152.83,152.8,6.5403]
[1745602107905,8.81647516,152.83,152.8,6.5403]
[1745602108505,15.35557516,152.83,152.8,6.5403]
[1745602108806,8.81647516,152.81,152.77,12.70767516]
[1745602109006,8.81647516,152.8,152.77,1.8902]
[1745602109208,8.81647516,152.8,152.77,8.4317]
[1745602109507,24.32,152.84,152.73,2.0268]
[1745602109508,8.81647516,152.78,152.74,8.81647516]
[1745602110407,15.35727516,152.79,152.74,8.81647516]
[1745602110709,6.5413,152.78,152.74,8.81647516]
[1745602111308,6.541,152.79,152.74,8.81647516]
[1745602111508,15.35747516,152.79,152.75,8.81647516]
[1745602111808,15.35747516,152.79,152.76,6.5419]
[1745602112009,15.35777516,152.78,152.74,8.81647516]
[1745602112311,15.35777516,152.78,152.75,6.5423]
[1745602114512,15.35777516,152.78,152.75,15.35877516]
[1745602114910,6.5418,152.77,152.75,8.81647516]
[1745602115110,6.5418,152.77,152.74,15.35927516]
[1745602115513,15.35787516,152.78,152.75,6.5425]
[1745602116211,6.5417,152.77,152.74,15.35927516]
[1745602116412,8.81647516,152.78,152.74,8.81647516]
[1745602117714,6.5417,152.77,152.74,15.35917516]
[1745602117914,8.81647516,152.78,152.74,15.35917516]
[1745602118514,15.35777516,152.78,152.74,15.35917516]
[1745602118813,15.35777516,152.78,152.75,6.5424]
[1745602122916,8.81647516,152.78,152.75,6.5425]
[1745602124117,15.35797516,152.78,152.75,6.5425]
[1745602126020,15.35797516,152.78,152.74,15.35917516]
[1745602126220,6.5418,152.77,152.74,15.35917516]
[1745602126623,8.81647516,152.78,152.75,6.5425]
[1745602127123,15.35797516,152.78,152.75,6.5425]
[1745602128018,6.5418,152.77,152.74,15.35937516]
[1745602128219,8.81647516,152.78,152.73,37.18457516]
[1745602128519,8.81647516,152.78,152.73,12.86457516]
[1745602128819,6.5419,152.77,152.74,6.5427]
[1745602129421,15.35837516,152.77,152.74,6.5427]
[1745602132125,6.5422,152.76,152.73,19.40777516]
[1745602133225,15.35837516,152.77,152.74,6.5429]
[1745602133525,8.81647516,152.76,152.73,2.0213]
[1745602133926,6.5426,152.75,152.73,2.0213]
[1745602134326,15.35867516,152.76,152.73,2.0213]
[1745602134625,15.35867516,152.76,152.73,8.5647]
[1745602135926,8.81647516,152.76,152.73,8.5647]
[1745602136629,15.35877516,152.76,152.72,6.5437]
[1745602137223,15.35907516,152.75,152.71,8.81647516]
[1745602137429,8.81647516,152.75,152.7,8.81647516]
[1745602138129,8.81647516,152.75,152.72,6.5434]
[1745602139030,8.81647516,152.75,152.72,6.5437]
[1745602139232,8.81647516,152.75,152.71,8.81647516]
[1745602139434,39.67887516,152.76,152.71,8.81647516]
[1745602140035,6.5426,152.75,152.72,6.5435]
[1745602140634,39.67877516,152.76,152.73,6.5434]
[1745602141437,6.5426,152.75,152.72,6.5436]
[1745602141634,8.81647516,152.74,152.7,8.81647516]
[1745602141837,8.81647516,152.74,152.69,10.89277516]
[1745602142037,6.5434,152.73,152.7,6.5444]
[1745602142231,8.81647516,152.74,152.7,6.5444]
[1745602142629,6.5435,152.73,152.7,6.5444]
[1745602143538,15.35967516,152.74,152.71,6.5442]
[1745602145538,6.5435,152.73,152.7,6.5445]
[1745602146437,15.36027516,152.72,152.69,8.6211]
[1745602146641,8.81647516,152.72,152.69,2.0763]
[1745602146837,8.81647516,152.72,152.67,2.0783]
[1745602147034,8.81647516,152.7,152.66,8.81647516]
[1745602147643,15.36137516,152.7,152.67,6.5458]
[1745602147838,8.81647516,152.7,152.66,8.81647516]
[1745602148338,8.81647516,152.7,152.67,6.5456]
[1745602149042,8.81647516,152.7,152.68,6.5453]
[1745602150041,8.81647516,152.7,152.66,8.81647516]
[1745602150244,8.81647516,152.68,152.63,5.8456]
[1745602150438,8.81647516,152.68,152.64,8.81647516]
[1745602150643,8.81647516,152.68,152.65,6.5471]
[1745602151946,8.81647516,152.68,152.66,6.547]
[1745602152746,15.36247516,152.69,152.66,6.547]
[1745602153443,8.81647516,152.7,152.66,8.81647516]
[1745602154245,33.13647516,152.72,152.68,6.546]
[1745602154442,33.13647516,152.72,152.67,8.81647516]
[1745602154647,8.81647516,152.68,152.63,5.8456]
[1745602154944,8.81647516,152.69,152.65,8.81647516]
[1745602155443,6.5453,152.71,152.65,8.81647516]
[1745602155645,8.81647516,152.7,152.65,8.81647516]
[1745602155846,15.36177516,152.71,152.66,8.81647516]
[1745602156445,8.81647516,152.71,152.68,6.5462]
[1745602158248,15.36137516,152.71,152.68,6.5462]
[1745602158948,33.13647516,152.72,152.69,6.5457]
[1745602159448,39.68107516,152.72,152.68,6.546]
[1745602159648,39.68107516,152.72,152.67,8.81647516]
[1745602159848,8.81647516,152.7,152.66,8.81647516]
[1745602160049,15.36207516,152.7,152.66,15.36327516]
[1745602160455,8.81647516,152.7,152.66,6.5468]
[1745602161550,8.81647516,152.68,152.64,15.36417516]
[1745602161751,8.81647516,152.68,152.64,6.5477]
[1745602162348,6.5466,152.67,152.64,6.5477]
[1745602162551,33.15647516,152.68,152.63,15.36457516]
[1745602162850,33.15647516,152.68,152.63,8.81647516]
[1745602162851,6.5469,152.67,152.63,8.81647516]
[1745602163047,33.15647516,152.68,152.64,6.5476]
[1745602164055,39.70287516,152.68,152.64,6.5476]
[1745602164253,39.70287516,152.68,152.65,6.5474]
[1745602164754,39.70287516,152.68,152.64,6.5477]
[1745602165363,6.5467,152.67,152.64,6.5477]
[1745602165755,8.81647516,152.67,152.64,6.5477]
[1745602166263,8.81647516,152.65,152.6,1.9381]
[1745602166451,8.81647516,152.64,152.6,1.9381]
[1745602166859,8.81647516,152.64,152.62,6.5487]
[1745602167056,8.81647516,152.63,152.58,24.34]
[1745602167260,8.81647516,152.62,152.57,8.81647516]
[1745602167458,8.81647516,152.62,152.59,6.5498]
[1745602167966,8.81647516,152.62,152.6,6.5495]
[1745602168266,33.13647516,152.63,152.58,8.81647516]
[1745602168468,33.13647516,152.63,152.6,6.5492]
[1745602169162,33.13647516,152.63,152.59,6.5498]
[1745602169362,33.13647516,152.63,152.58,8.81647516]
[1745602169566,39.68487516,152.63,152.58,8.81647516]
[1745602169969,8.81647516,152.62,152.59,6.5498]
[1745602170164,15.36547516,152.62,152.59,6.5498]
[1745602170364,8.81647516,152.62,152.58,8.81647516]
[1745602170569,8.81647516,152.62,152.58,15.36677516]
[1745602170770,6.5493,152.61,152.58,15.36677516]
[1745602171967,6.5493,152.61,152.58,8.81647516]
[1745602173169,8.81647516,152.61,152.56,8.81647516]
[1745602173664,8.81647516,152.61,152.57,6.5507]
[1745602173861,8.81647516,152.61,152.56,8.81647516]
[1745602174161,8.81647516,152.61,152.56,15.36757516]
[1745602174372,15.36677516,152.59,152.55,1.9974]
[1745602174560,8.81647516,152.59,152.54,8.81647516]
[1745602174758,8.81647516,152.59,152.56,6.5511]